[Event "Titled Tuesday Blitz April 11 Early 2023"]
[White "Qashashvili, Alexandre"]
[Black "Gogolev, Artem"]
[WhiteFideId "13600842"]
[BlackFideId "4116615"]
[WhiteElo "2405"]
[BlackElo "2182"]
[Result "0-1"]
[Round "06"]
[TimeControl "180+2"]
[Date "2023.04.11"]
[WhiteClock "0:00:09"]
[BlackClock "0:00:21"]

1. e4 {[%clk 0:03:00]}  c5 {[%clk 0:02:54]} 2. Nc3 {[%clk 0:03:00]}  Nf6 {[%clk 0:02:55]} 3. Nf3 {[%clk 0:02:56]}  d5 {[%clk 0:02:54]} 4. exd5 {[%clk 0:02:52]}  Nxd5 {[%clk 0:02:55]} 5. Nxd5 {[%clk 0:02:51]}  Qxd5 {[%clk 0:02:54]} 6. d3 {[%clk 0:02:52]}  Nc6 {[%clk 0:02:54]} 7. Be2 {[%clk 0:02:52]}  g6 {[%clk 0:02:54]} 8. O-O {[%clk 0:02:53]}  Bg7 {[%clk 0:02:54]} 9. c3 {[%clk 0:02:53]}  O-O {[%clk 0:02:54]} 10. Be3 {[%clk 0:02:54]}  Bf5 {[%clk 0:02:51]} 11. d4 {[%clk 0:02:53]}  cxd4 {[%clk 0:02:51]} 12. Nxd4 {[%clk 0:02:53]}  Nxd4 {[%clk 0:02:51]} 13. Bxd4 {[%clk 0:02:53]}  Bxd4 {[%clk 0:02:51]} 14. Qxd4 {[%clk 0:02:53]}  Qxd4 {[%clk 0:02:51]} 15. cxd4 {[%clk 0:02:53]}  Rfd8 {[%clk 0:02:51]} 16. Rfd1 {[%clk 0:02:50]}  Rac8 {[%clk 0:02:51]} 17. Bf3 {[%clk 0:02:49]}  Rc2 {[%clk 0:02:44]} 18. Bxb7 {[%clk 0:02:48]}  Rb8 {[%clk 0:02:40]} 19. Bf3 {[%clk 0:02:39]}  Rbxb2 {[%clk 0:02:37]} 20. d5 {[%clk 0:02:35]}  Rxf2 {[%clk 0:02:30]} 21. a4 {[%clk 0:02:32]}  a5 {[%clk 0:02:12]} 22. d6 {[%clk 0:02:32]}  exd6 {[%clk 0:02:12]} 23. Rxd6 {[%clk 0:02:33]}  Ra2 {[%clk 0:02:03]} 24. Rxa2 {[%clk 0:02:18]}  Rxa2 {[%clk 0:02:04]} 25. Bc6 {[%clk 0:02:16]}  Kg7 {[%clk 0:01:52]} 26. h3 {[%clk 0:02:11]}  h5 {[%clk 0:01:51]} 27. Rd4 {[%clk 0:02:02]}  Be6 {[%clk 0:01:45]} 28. Re4 {[%clk 0:01:50]}  Kf6 {[%clk 0:01:44]} 29. Rf4+ {[%clk 0:01:36]}  Ke5 {[%clk 0:01:42]} 30. Rh4 {[%clk 0:01:33]}  Kd6 {[%clk 0:01:40]} 31. Bb5 {[%clk 0:01:27]}  Bd5 {[%clk 0:01:18]} 32. g4 {[%clk 0:01:23]}  Rg2+ {[%clk 0:01:14]} 33. Kf1 {[%clk 0:01:21]}  hxg4 {[%clk 0:01:02]} 34. hxg4 {[%clk 0:01:17]}  Rb2 {[%clk 0:00:57]} 35. Rh8 {[%clk 0:01:06]}  Ke5 {[%clk 0:00:53]} 36. Rc8 {[%clk 0:00:58]}  Rb4 {[%clk 0:00:51]} 37. Bd7 {[%clk 0:00:46]}  Kd6 {[%clk 0:00:47]} 38. Be8 {[%clk 0:00:39]}  Rxg4 {[%clk 0:00:43]} 39. Rd8+ {[%clk 0:00:39]}  Ke5 {[%clk 0:00:40]} 40. Rd7 {[%clk 0:00:35]}  Rf4+ {[%clk 0:00:31]} 41. Kg1 {[%clk 0:00:31]}  Bc6 {[%clk 0:00:18]} 42. Rd8 {[%clk 0:00:24]}  Bxe8 {[%clk 0:00:18]} 43. Rxe8+ {[%clk 0:00:25]}  Kf6 {[%clk 0:00:18]} 44. Ra8 {[%clk 0:00:21]}  Rxa4 {[%clk 0:00:18]} 45. Kf2 {[%clk 0:00:20]}  Kg5 {[%clk 0:00:19]} 46. Kf3 {[%clk 0:00:20]}  f5 {[%clk 0:00:20]} 47. Ra6 {[%clk 0:00:18]}  Ra3+ {[%clk 0:00:20]} 48. Kf2 {[%clk 0:00:18]}  f4 {[%clk 0:00:20]} 49. Ke2 {[%clk 0:00:15]}  Kf5 {[%clk 0:00:21]} 50. Kf2 {[%clk 0:00:12]}  g5 {[%clk 0:00:21]} 51. Kf1 {[%clk 0:00:10]}  Kg4 {[%clk 0:00:22]} 52. Rxa5 {[%clk 0:00:09]}  Rxa5 {[%clk 0:00:21]} 53. Kg2 {[%clk 0:00:08]}  Ra2+ {[%clk 0:00:21]} 54. Kh1 {[%clk 0:00:09]}  Kg3 {[%clk 0:00:21]} 55. Kg1 {[%clk 0:00:09]}  Ra1# {[%clk 0:00:21]} 0-1


[Site "https://www.chess.com"]

[Event "Titled Tuesday Blitz April 11 Early 2023"]
[White "Prudnykova, Olga"]
[Black "Nguyen, Hong Anh"]
[WhiteFideId "14121093"]
[BlackFideId "12406732"]
[WhiteElo "2113"]
[BlackElo "2054"]
[Result "0-1"]
[Round "06"]
[TimeControl "180+2"]
[Date "2023.04.11"]
[WhiteClock "0:00:10"]
[BlackClock "0:00:12"]

1. e4 {[%clk 0:03:00]}  c5 {[%clk 0:02:59]} 2. Nf3 {[%clk 0:02:59]}  Nc6 {[%clk 0:02:58]} 3. Nc3 {[%clk 0:02:59]}  g6 {[%clk 0:02:58]} 4. d4 {[%clk 0:02:57]}  cxd4 {[%clk 0:02:58]} 5. Nxd4 {[%clk 0:02:58]}  Bg7 {[%clk 0:02:59]} 6. Nb3 {[%clk 0:02:58]}  Nf6 {[%clk 0:02:59]} 7. Be2 {[%clk 0:02:59]}  O-O {[%clk 0:02:59]} 8. O-O {[%clk 0:02:48]}  d6 {[%clk 0:03:00]} 9. Re1 {[%clk 0:02:02]}  Be6 {[%clk 0:02:54]} 10. Bf1 {[%clk 0:01:55]}  a6 {[%clk 0:02:45]} 11. Nd5 {[%clk 0:01:50]}  b5 {[%clk 0:02:39]} 12. c3 {[%clk 0:01:48]}  Rc8 {[%clk 0:02:25]} 13. a3 {[%clk 0:01:46]}  Ne5 {[%clk 0:02:14]} 14. Bg5 {[%clk 0:01:32]}  Bxd5 {[%clk 0:01:51]} 15. exd5 {[%clk 0:01:31]}  Qd7 {[%clk 0:01:49]} 16. Rb1 {[%clk 0:01:16]}  Qf5 {[%clk 0:01:44]} 17. Bh4 {[%clk 0:01:10]}  Nc4 {[%clk 0:01:40]} 18. Bg3 {[%clk 0:01:07]}  Nxd5 {[%clk 0:01:33]} 19. Bd3 {[%clk 0:01:01]}  Qg5 {[%clk 0:01:07]} 20. h4 {[%clk 0:01:00]}  Nxb2 {[%clk 0:01:05]} 21. hxg5 {[%clk 0:00:44]}  Nxd1 {[%clk 0:01:04]} 22. Rbxd1 {[%clk 0:00:43]}  Nxc3 {[%clk 0:01:01]} 23. Rc1 {[%clk 0:00:41]}  Nd5 {[%clk 0:00:58]} 24. Be4 {[%clk 0:00:31]}  Nc3 {[%clk 0:00:58]} 25. Bf3 {[%clk 0:00:27]}  Rc7 {[%clk 0:00:47]} 26. Nd2 {[%clk 0:00:16]}  Rfc8 {[%clk 0:00:46]} 27. Kh2 {[%clk 0:00:13]}  a5 {[%clk 0:00:45]} 28. Ne4 {[%clk 0:00:12]}  b4 {[%clk 0:00:42]} 29. axb4 {[%clk 0:00:11]}  axb4 {[%clk 0:00:42]} 30. Nd2 {[%clk 0:00:08]}  Kf8 {[%clk 0:00:35]} 31. Nb3 {[%clk 0:00:08]}  h6 {[%clk 0:00:34]} 32. Bf4 {[%clk 0:00:08]}  hxg5 {[%clk 0:00:31]} 33. Bxg5 {[%clk 0:00:08]}  Be5+ {[%clk 0:00:31]} 34. g3 {[%clk 0:00:08]}  f6 {[%clk 0:00:27]} 35. Bh6+ {[%clk 0:00:08]}  Kf7 {[%clk 0:00:27]} 36. Be3 {[%clk 0:00:09]}  e6 {[%clk 0:00:20]} 37. Kg2 {[%clk 0:00:09]}  d5 {[%clk 0:00:19]} 38. Nd2 {[%clk 0:00:08]}  d4 {[%clk 0:00:18]} 39. Bf4 {[%clk 0:00:07]}  Bxf4 {[%clk 0:00:18]} 40. gxf4 {[%clk 0:00:08]}  Nd5 {[%clk 0:00:15]} 41. Nb3 {[%clk 0:00:07]}  Nxf4+ {[%clk 0:00:15]} 42. Kg3 {[%clk 0:00:07]}  Nd3 {[%clk 0:00:13]} 43. Rxc7+ {[%clk 0:00:07]}  Rxc7 {[%clk 0:00:14]} 44. Rd1 {[%clk 0:00:08]}  Ne5 {[%clk 0:00:11]} 45. Rxd4 {[%clk 0:00:08]}  Nxf3 {[%clk 0:00:11]} 46. Kxf3 {[%clk 0:00:08]}  Rc3+ {[%clk 0:00:11]} 47. Ke2 {[%clk 0:00:09]}  Rxb3 {[%clk 0:00:12]} 48. Rd7+ {[%clk 0:00:10]}  Ke8 {[%clk 0:00:12]} 0-1


[Site "https://www.chess.com"]

[Event "Titled Tuesday Blitz April 11 Early 2023"]
[White "Rom, Jasper"]
[Black "Skaric, Djuro"]
[WhiteFideId "2023733"]
[BlackFideId "934569"]
[WhiteElo "2233"]
[BlackElo "2282"]
[Result "1-0"]
[Round "06"]
[TimeControl "180+2"]
[Date "2023.04.11"]
[WhiteClock "0:00:16"]
[BlackClock "0:00:47"]

1. e4 {[%clk 0:02:56]}  d6 {[%clk 0:03:00]} 2. d4 {[%clk 0:02:55]}  g6 {[%clk 0:03:01]} 3. Nc3 {[%clk 0:02:56]}  Bg7 {[%clk 0:03:02]} 4. Nf3 {[%clk 0:02:56]}  Nf6 {[%clk 0:02:54]} 5. Be2 {[%clk 0:02:55]}  O-O {[%clk 0:02:55]} 6. O-O {[%clk 0:02:55]}  Nc6 {[%clk 0:02:56]} 7. h3 {[%clk 0:02:54]}  h6 {[%clk 0:02:56]} 8. Be3 {[%clk 0:02:54]}  e5 {[%clk 0:02:55]} 9. Qd2 {[%clk 0:02:53]}  Kh7 {[%clk 0:02:54]} 10. Rad1 {[%clk 0:02:53]}  Nd7 {[%clk 0:02:51]} 11. d5 {[%clk 0:02:39]}  Ne7 {[%clk 0:02:50]} 12. Nh2 {[%clk 0:02:39]}  f5 {[%clk 0:02:49]} 13. f4 {[%clk 0:02:36]}  exf4 {[%clk 0:02:49]} 14. Bxf4 {[%clk 0:02:36]}  g5 {[%clk 0:02:50]} 15. Be3 {[%clk 0:02:33]}  f4 {[%clk 0:02:50]} 16. Bd4 {[%clk 0:02:33]}  Ne5 {[%clk 0:02:50]} 17. Nf3 {[%clk 0:02:31]}  N7g6 {[%clk 0:02:49]} 18. Nh2 {[%clk 0:02:13]}  a6 {[%clk 0:02:46]} 19. a4 {[%clk 0:02:11]}  Qe8 {[%clk 0:02:45]} 20. Bh5 {[%clk 0:02:10]}  Qe7 {[%clk 0:02:43]} 21. Nf3 {[%clk 0:02:03]}  Bd7 {[%clk 0:02:39]} 22. Rde1 {[%clk 0:01:57]}  Be8 {[%clk 0:02:39]} 23. a5 {[%clk 0:01:49]}  Nh4 {[%clk 0:02:27]} 24. Nxh4 {[%clk 0:01:44]}  Bxh5 {[%clk 0:02:20]} 25. Nf5 {[%clk 0:01:41]}  Qf6 {[%clk 0:02:19]} 26. Nxg7 {[%clk 0:01:20]}  Qxg7 {[%clk 0:02:18]} 27. Nd1 {[%clk 0:01:08]}  Rae8 {[%clk 0:02:16]} 28. Nf2 {[%clk 0:01:07]}  Qd7 {[%clk 0:02:15]} 29. Bxe5 {[%clk 0:01:04]}  dxe5 {[%clk 0:02:12]} 30. c4 {[%clk 0:00:53]}  Rf7 {[%clk 0:02:07]} 31. c5 {[%clk 0:00:52]}  Rg7 {[%clk 0:02:07]} 32. Qb4 {[%clk 0:00:31]}  g4 {[%clk 0:02:05]} 33. hxg4 {[%clk 0:00:31]}  Bxg4 {[%clk 0:02:05]} 34. Nxg4 {[%clk 0:00:31]}  Qxg4 {[%clk 0:02:04]} 35. Rf2 {[%clk 0:00:31]}  Reg8 {[%clk 0:01:51]} 36. Qc3 {[%clk 0:00:21]}  f3 {[%clk 0:01:15]} 37. Qxe5 {[%clk 0:00:20]}  Qh3 {[%clk 0:01:08]} 38. Qf5+ {[%clk 0:00:19]}  Qxf5 {[%clk 0:01:08]} 39. exf5 {[%clk 0:00:20]}  Rxg2+ {[%clk 0:01:08]} 40. Rxg2 {[%clk 0:00:20]}  Rxg2+ {[%clk 0:01:07]} 41. Kf1 {[%clk 0:00:20]}  Rxb2 {[%clk 0:01:04]} 42. Re7+ {[%clk 0:00:20]}  Kg8 {[%clk 0:01:01]} 43. Rxc7 {[%clk 0:00:19]}  h5 {[%clk 0:01:02]} 44. d6 {[%clk 0:00:19]}  Kf8 {[%clk 0:00:55]} 45. Rc8+ {[%clk 0:00:16]}  Kf7 {[%clk 0:00:52]} 46. d7 {[%clk 0:00:16]}  Rb1+ {[%clk 0:00:47]} 47. Kf2 {[%clk 0:00:16]}  Rb2+ {[%clk 0:00:47]} 48. Kxf3 {[%clk 0:00:16]}  Rb3+ {[%clk 0:00:47]} 49. Kf4 {[%clk 0:00:16]} 1-0


[Site "https://www.chess.com"]

[Event "Titled Tuesday Blitz April 11 Early 2023"]
[White "Orujov2008"]
[Black "Lopez, Henry"]
[BlackFideId "5203830"]
[WhiteElo "2307"]
[BlackElo "2177"]
[Result "0-1"]
[Round "06"]
[TimeControl "180+2"]
[Date "2023.04.11"]
[WhiteClock "0:01:03"]
[BlackClock "0:00:07"]

1. e4 {[%clk 0:03:00]}  c5 {[%clk 0:02:58]} 2. Nf3 {[%clk 0:03:00]}  d6 {[%clk 0:02:58]} 3. d4 {[%clk 0:03:00]}  cxd4 {[%clk 0:02:58]} 4. Nxd4 {[%clk 0:03:01]}  Nf6 {[%clk 0:02:58]} 5. Nc3 {[%clk 0:03:02]}  a6 {[%clk 0:02:59]} 6. h3 {[%clk 0:03:02]}  e5 {[%clk 0:02:58]} 7. Nde2 {[%clk 0:02:59]}  h5 {[%clk 0:02:57]} 8. Bg5 {[%clk 0:02:58]}  Be6 {[%clk 0:02:56]} 9. Bxf6 {[%clk 0:02:59]}  Qxf6 {[%clk 0:02:55]} 10. Nd5 {[%clk 0:03:00]}  Qd8 {[%clk 0:02:55]} 11. Nec3 {[%clk 0:03:01]}  Nd7 {[%clk 0:02:48]} 12. Bc4 {[%clk 0:03:00]}  Rc8 {[%clk 0:02:46]} 13. Bb3 {[%clk 0:03:00]}  Nc5 {[%clk 0:02:46]} 14. O-O {[%clk 0:02:59]}  b5 {[%clk 0:02:27]} 15. Qe2 {[%clk 0:02:57]}  g5 {[%clk 0:02:09]} 16. a4 {[%clk 0:02:42]}  g4 {[%clk 0:02:03]} 17. h4 {[%clk 0:02:21]}  Qxh4 {[%clk 0:01:42]} 18. axb5 {[%clk 0:02:20]}  g3 {[%clk 0:01:11]} 19. fxg3 {[%clk 0:02:21]}  Qxg3 {[%clk 0:01:10]} 20. bxa6 {[%clk 0:02:09]}  Bh6 {[%clk 0:00:58]} 21. a7 {[%clk 0:01:56]}  O-O {[%clk 0:00:30]} 22. Qxh5 {[%clk 0:01:40]}  Be3+ {[%clk 0:00:17]} 23. Nxe3 {[%clk 0:01:26]}  Qxe3+ {[%clk 0:00:16]} 24. Kh2 {[%clk 0:01:19]}  Kg7 {[%clk 0:00:16]} 25. Rf3 {[%clk 0:01:13]}  Rh8 {[%clk 0:00:09]} 26. Qxh8+ {[%clk 0:01:12]}  Rxh8+ {[%clk 0:00:07]} 27. Rh3 {[%clk 0:01:07]}  Bxh3 {[%clk 0:00:07]} 28. a8=Q {[%clk 0:01:03]}  Bc8# {[%clk 0:00:07]} 0-1


[Site "https://www.chess.com"]

[Event "Titled Tuesday Blitz April 11 Early 2023"]
[White "Schuh, Karsten"]
[Black "Santos Flores, Alberto"]
[WhiteFideId "4637950"]
[BlackFideId "3601234"]
[WhiteElo "2138"]
[BlackElo "2235"]
[Result "0-1"]
[Round "06"]
[TimeControl "180+2"]
[Date "2023.04.11"]
[WhiteClock "0:00:20"]
[BlackClock "0:00:32"]

1. Nf3 {[%clk 0:03:00]}  c5 {[%clk 0:02:59]} 2. c4 {[%clk 0:02:59]}  g6 {[%clk 0:02:59]} 3. g3 {[%clk 0:02:59]}  Bg7 {[%clk 0:02:59]} 4. Bg2 {[%clk 0:02:59]}  Nc6 {[%clk 0:02:59]} 5. O-O {[%clk 0:02:59]}  e6 {[%clk 0:02:59]} 6. Nc3 {[%clk 0:02:56]}  Nge7 {[%clk 0:02:59]} 7. d3 {[%clk 0:02:53]}  O-O {[%clk 0:02:59]} 8. Bg5 {[%clk 0:02:43]}  h6 {[%clk 0:02:59]} 9. Bd2 {[%clk 0:02:42]}  b6 {[%clk 0:02:59]} 10. a3 {[%clk 0:02:39]}  Bb7 {[%clk 0:02:59]} 11. Rb1 {[%clk 0:02:39]}  d5 {[%clk 0:02:59]} 12. cxd5 {[%clk 0:02:36]}  Nxd5 {[%clk 0:02:59]} 13. Nxd5 {[%clk 0:02:35]}  Qxd5 {[%clk 0:02:59]} 14. b4 {[%clk 0:02:33]}  cxb4 {[%clk 0:02:59]} 15. axb4 {[%clk 0:02:32]}  Rac8 {[%clk 0:03:00]} 16. b5 {[%clk 0:02:27]}  Nd4 {[%clk 0:02:59]} 17. Be3 {[%clk 0:02:04]}  Nxf3+ {[%clk 0:02:02]} 18. Bxf3 {[%clk 0:02:03]}  Qd7 {[%clk 0:02:03]} 19. Bxb7 {[%clk 0:02:00]}  Qxb7 {[%clk 0:02:04]} 20. Qd2 {[%clk 0:02:00]}  Kh7 {[%clk 0:02:02]} 21. Rfc1 {[%clk 0:02:00]}  Rxc1+ {[%clk 0:02:01]} 22. Rxc1 {[%clk 0:02:00]}  Rc8 {[%clk 0:02:02]} 23. Rxc8 {[%clk 0:01:53]}  Qxc8 {[%clk 0:02:03]} 24. Qa2 {[%clk 0:01:53]}  Qd7 {[%clk 0:02:00]} 25. Qc4 {[%clk 0:01:50]}  f5 {[%clk 0:01:44]} 26. Qc6 {[%clk 0:01:35]}  Qf7 {[%clk 0:01:32]} 27. h4 {[%clk 0:01:31]}  e5 {[%clk 0:01:31]} 28. Bd2 {[%clk 0:01:17]}  h5 {[%clk 0:01:25]} 29. Bc3 {[%clk 0:01:15]}  f4 {[%clk 0:01:24]} 30. Kg2 {[%clk 0:01:10]}  fxg3 {[%clk 0:01:07]} 31. fxg3 {[%clk 0:01:09]}  Qb3 {[%clk 0:01:06]} 32. Kf3 {[%clk 0:00:57]}  Qd1 {[%clk 0:01:02]} 33. Kf2 {[%clk 0:00:52]}  Qb3 {[%clk 0:00:50]} 34. Kf3 {[%clk 0:00:39]}  Qxc3 {[%clk 0:00:44]} 35. Qxc3 {[%clk 0:00:36]}  e4+ {[%clk 0:00:44]} 36. Kxe4 {[%clk 0:00:36]}  Bxc3 {[%clk 0:00:45]} 37. Kd5 {[%clk 0:00:31]}  Be1 {[%clk 0:00:42]} 38. e4 {[%clk 0:00:30]}  Kg7 {[%clk 0:00:41]} 39. Ke6 {[%clk 0:00:30]}  Kf8 {[%clk 0:00:40]} 40. d4 {[%clk 0:00:27]}  Bxg3 {[%clk 0:00:40]} 41. d5 {[%clk 0:00:27]}  Bxh4 {[%clk 0:00:39]} 42. e5 {[%clk 0:00:23]}  Ke8 {[%clk 0:00:38]} 43. d6 {[%clk 0:00:22]}  Bd8 {[%clk 0:00:33]} 44. Kd5 {[%clk 0:00:20]}  h4 {[%clk 0:00:33]} 45. e6 {[%clk 0:00:20]}  h3 {[%clk 0:00:32]} 0-1


[Site "https://www.chess.com"]

[Event "Titled Tuesday Blitz April 11 Early 2023"]
[White "Chabris, Christopher"]
[Black "Erzhanov, Arman"]
[WhiteFideId "2005263"]
[BlackFideId "4138821"]
[WhiteElo "2283"]
[BlackElo "2138"]
[Result "0-1"]
[Round "06"]
[TimeControl "180+2"]
[Date "2023.04.11"]
[WhiteClock "0:00:02"]
[BlackClock "0:00:04"]

1. e4 {[%clk 0:02:59]}  d6 {[%clk 0:03:00]} 2. d4 {[%clk 0:02:59]}  Nf6 {[%clk 0:03:01]} 3. Nc3 {[%clk 0:02:59]}  e5 {[%clk 0:03:01]} 4. Nf3 {[%clk 0:02:58]}  Nbd7 {[%clk 0:03:02]} 5. g4 {[%clk 0:02:58]}  g6 {[%clk 0:02:59]} 6. g5 {[%clk 0:02:55]}  Nh5 {[%clk 0:02:59]} 7. Bc4 {[%clk 0:02:54]}  Bg7 {[%clk 0:02:58]} 8. Be3 {[%clk 0:02:52]}  O-O {[%clk 0:02:58]} 9. Qe2 {[%clk 0:02:49]}  c6 {[%clk 0:02:58]} 10. a3 {[%clk 0:02:34]}  b5 {[%clk 0:02:57]} 11. Ba2 {[%clk 0:02:31]}  a5 {[%clk 0:02:52]} 12. O-O {[%clk 0:01:58]}  b4 {[%clk 0:02:42]} 13. axb4 {[%clk 0:01:52]}  axb4 {[%clk 0:02:42]} 14. Na4 {[%clk 0:01:43]}  Re8 {[%clk 0:02:35]} 15. Bc4 {[%clk 0:01:31]}  Bb7 {[%clk 0:02:22]} 16. dxe5 {[%clk 0:01:17]}  dxe5 {[%clk 0:02:18]} 17. Rfd1 {[%clk 0:01:17]}  Qc7 {[%clk 0:02:18]} 18. b3 {[%clk 0:01:08]}  Nf4 {[%clk 0:02:16]} 19. Qd2 {[%clk 0:01:04]}  Rad8 {[%clk 0:02:13]} 20. Qd6 {[%clk 0:01:00]}  Qxd6 {[%clk 0:02:04]} 21. Rxd6 {[%clk 0:00:59]}  Bf8 {[%clk 0:02:04]} 22. Rd2 {[%clk 0:00:56]}  Be7 {[%clk 0:01:37]} 23. Rad1 {[%clk 0:00:52]}  Bc8 {[%clk 0:01:25]} 24. Nb6 {[%clk 0:00:32]}  Nxb6 {[%clk 0:01:24]} 25. Bxb6 {[%clk 0:00:32]}  Rxd2 {[%clk 0:01:23]} 26. Rxd2 {[%clk 0:00:32]}  Nh3+ {[%clk 0:01:20]} 27. Kf1 {[%clk 0:00:28]}  Bxg5 {[%clk 0:01:15]} 28. Rd6 {[%clk 0:00:26]}  Bh6 {[%clk 0:00:22]} 29. Rxc6 {[%clk 0:00:24]}  Nf4 {[%clk 0:00:22]} 30. Rc7 {[%clk 0:00:20]}  Be6 {[%clk 0:00:19]} 31. Be3 {[%clk 0:00:14]}  Bxc4+ {[%clk 0:00:16]} 32. Rxc4 {[%clk 0:00:14]}  Ra8 {[%clk 0:00:14]} 33. Bxf4 {[%clk 0:00:13]}  Bxf4 {[%clk 0:00:14]} 34. Rxb4 {[%clk 0:00:13]}  Ra2 {[%clk 0:00:13]} 35. Rc4 {[%clk 0:00:12]}  Rb2 {[%clk 0:00:13]} 36. Rc7 {[%clk 0:00:11]}  g5 {[%clk 0:00:13]} 37. h3 {[%clk 0:00:10]}  h5 {[%clk 0:00:13]} 38. Ne1 {[%clk 0:00:09]}  Rb1 {[%clk 0:00:12]} 39. Ke2 {[%clk 0:00:09]}  g4 {[%clk 0:00:10]} 40. hxg4 {[%clk 0:00:08]}  h4 {[%clk 0:00:11]} 41. Rc3 {[%clk 0:00:08]}  Kg7 {[%clk 0:00:06]} 42. Rh3 {[%clk 0:00:07]}  Bg5 {[%clk 0:00:05]} 43. Nf3 {[%clk 0:00:06]}  f6 {[%clk 0:00:05]} 44. Nxh4 {[%clk 0:00:06]}  Bxh4 {[%clk 0:00:03]} 45. Rxh4 {[%clk 0:00:06]}  Kg6 {[%clk 0:00:01]} 46. Kd2 {[%clk 0:00:05]}  Kg5 {[%clk 0:00:02]} 47. Rh3 {[%clk 0:00:04]}  Kxg4 {[%clk 0:00:02]} 48. Rd3 {[%clk 0:00:04]}  Kf4 {[%clk 0:00:02]} 49. f3 {[%clk 0:00:03]}  Rf1 {[%clk 0:00:03]} 50. Ke2 {[%clk 0:00:02]}  Rg1 {[%clk 0:00:03]} 51. c4 {[%clk 0:00:02]}  Rg2+ {[%clk 0:00:04]} 0-1


[Site "https://www.chess.com"]

[Event "Titled Tuesday Blitz April 11 Early 2023"]
[White "Barwinska, Ewa"]
[Black "Shubenkova, Veronika"]
[WhiteFideId "21833761"]
[BlackFideId "44124040"]
[WhiteElo "1908"]
[BlackElo "2027"]
[Result "0-1"]
[Round "06"]
[TimeControl "180+2"]
[Date "2023.04.11"]
[WhiteClock "0:00:03"]
[BlackClock "0:00:40"]

1. e4 {[%clk 0:02:59]}  e6 {[%clk 0:03:00]} 2. d4 {[%clk 0:02:55]}  d5 {[%clk 0:03:00]} 3. Nc3 {[%clk 0:02:53]}  Nf6 {[%clk 0:03:00]} 4. Bg5 {[%clk 0:02:52]}  Be7 {[%clk 0:03:00]} 5. e5 {[%clk 0:02:49]}  Nfd7 {[%clk 0:03:00]} 6. Bxe7 {[%clk 0:02:48]}  Qxe7 {[%clk 0:03:00]} 7. f4 {[%clk 0:02:49]}  a6 {[%clk 0:02:59]} 8. Nf3 {[%clk 0:02:47]}  c5 {[%clk 0:02:59]} 9. Bd3 {[%clk 0:02:39]}  Nc6 {[%clk 0:02:57]} 10. dxc5 {[%clk 0:02:31]}  Qxc5 {[%clk 0:02:56]} 11. Qd2 {[%clk 0:02:30]}  b5 {[%clk 0:02:55]} 12. Qf2 {[%clk 0:02:30]}  Qb4 {[%clk 0:02:54]} 13. Qd2 {[%clk 0:02:20]}  Qxb2 {[%clk 0:02:49]} 14. Rb1 {[%clk 0:02:20]}  Qa3 {[%clk 0:02:47]} 15. O-O {[%clk 0:02:04]}  Qc5+ {[%clk 0:02:45]} 16. Kh1 {[%clk 0:02:05]}  Bb7 {[%clk 0:02:37]} 17. a4 {[%clk 0:01:59]}  b4 {[%clk 0:02:37]} 18. Na2 {[%clk 0:01:58]}  a5 {[%clk 0:02:37]} 19. Nc1 {[%clk 0:01:56]}  Ba6 {[%clk 0:02:19]} 20. Nb3 {[%clk 0:01:44]}  Qb6 {[%clk 0:02:18]} 21. Rbe1 {[%clk 0:01:28]}  Bxd3 {[%clk 0:02:17]} 22. Qxd3 {[%clk 0:01:27]}  Ne7 {[%clk 0:02:17]} 23. Nfd4 {[%clk 0:01:21]}  g6 {[%clk 0:02:04]} 24. Nb5 {[%clk 0:01:04]}  O-O {[%clk 0:02:04]} 25. h4 {[%clk 0:00:58]}  Nc5 {[%clk 0:02:00]} 26. Nxc5 {[%clk 0:00:57]}  Qxc5 {[%clk 0:01:59]} 27. h5 {[%clk 0:00:55]}  Rac8 {[%clk 0:01:57]} 28. Nd4 {[%clk 0:00:54]}  Qc3 {[%clk 0:01:52]} 29. Qd1 {[%clk 0:00:54]}  Rc4 {[%clk 0:01:45]} 30. Nb5 {[%clk 0:00:41]}  Qxc2 {[%clk 0:01:41]} 31. Qg4 {[%clk 0:00:42]}  Qf5 {[%clk 0:01:38]} 32. Qxf5 {[%clk 0:00:33]}  Nxf5 {[%clk 0:01:36]} 33. hxg6 {[%clk 0:00:33]}  hxg6 {[%clk 0:01:36]} 34. Rf3 {[%clk 0:00:30]}  Kg7 {[%clk 0:01:33]} 35. g4 {[%clk 0:00:28]}  Rh8+ {[%clk 0:01:33]} 36. Kg2 {[%clk 0:00:27]}  Rc2+ {[%clk 0:01:32]} 37. Kg1 {[%clk 0:00:23]}  Nh4 {[%clk 0:01:29]} 38. Rh3 {[%clk 0:00:24]}  Rg2+ {[%clk 0:01:28]} 39. Kf1 {[%clk 0:00:24]}  Rxg4 {[%clk 0:01:28]} 40. Ke2 {[%clk 0:00:17]}  Rxf4 {[%clk 0:01:23]} 41. Nd6 {[%clk 0:00:16]}  Rb8 {[%clk 0:01:16]} 42. Reh1 {[%clk 0:00:15]}  g5 {[%clk 0:01:15]} 43. Rg3 {[%clk 0:00:14]}  Kg6 {[%clk 0:01:12]} 44. Rhg1 {[%clk 0:00:14]}  f6 {[%clk 0:00:55]} 45. exf6 {[%clk 0:00:14]}  Kxf6 {[%clk 0:00:55]} 46. Rxg5 {[%clk 0:00:13]}  Nf3 {[%clk 0:00:45]} 47. Rg6+ {[%clk 0:00:11]}  Ke7 {[%clk 0:00:45]} 48. Nb5 {[%clk 0:00:03]}  Nxg1+ {[%clk 0:00:45]} 49. Rxg1 {[%clk 0:00:04]}  b3 {[%clk 0:00:43]} 50. Rb1 {[%clk 0:00:03]}  Rxa4 {[%clk 0:00:42]} 51. Rxb3 {[%clk 0:00:03]}  Rb4 {[%clk 0:00:42]} 52. Rxb4 {[%clk 0:00:03]}  axb4 {[%clk 0:00:42]} 53. Nd4 {[%clk 0:00:04]}  Kd6 {[%clk 0:00:42]} 54. Kd3 {[%clk 0:00:04]}  e5 {[%clk 0:00:42]} 55. Nf5+ {[%clk 0:00:02]}  Kc5 {[%clk 0:00:41]} 56. Ne3 {[%clk 0:00:02]}  b3 {[%clk 0:00:41]} 57. Nd1 {[%clk 0:00:03]}  b2 {[%clk 0:00:40]} 0-1


[Site "https://www.chess.com"]